bitfinex/quotes_SOLUSD_20240813
["timestamp","ask_amount","ask_price","bid_price","bid_amount"]
[1723564443099,6.8399,146.2,146.11,0.12549]
[1723564443299,20.0,146.19,146.12,15.9114]
[1723564443493,20.0,146.2,146.13,45.25098]
[1723564443688,6.8391,146.22,146.14,6.6366]
[1723564443904,6.8391,146.22,146.15,45.25098]
[1723564444105,46.48889542,146.23,146.15,45.25098]
[1723564444308,6.8402,146.2,146.15,45.0]
[1723564445394,6.8396,146.21,146.15,45.0]
[1723564445598,46.48889542,146.23,146.15,45.0]
[1723564445799,6.841,146.18,146.15,45.0]
[1723564446018,1.66063536,146.17,146.15,45.0]
[1723564446313,46.48889542,146.23,146.15,45.0]
[1723564446486,20.0,146.22,146.15,45.0]
[1723564446683,6.8397,146.21,146.15,45.0]
[1723564446917,20.0,146.2,146.15,45.0]
[1723564447622,26.84,146.2,146.15,45.0]
[1723564448203,20.0,146.2,146.15,45.0]
[1723564448405,6.8416,146.17,146.15,45.0]
[1723564448614,6.8409,146.18,146.15,45.0]
[1723564448921,6.8404,146.19,146.15,45.0]
[1723564449215,6.8409,146.18,146.15,45.0]
[1723564449397,6.8405,146.19,146.15,45.0]
[1723564449599,20.0,146.2,146.15,45.0]
[1723564449818,46.48889542,146.23,146.16,0.25098]
[1723564449819,20.0,146.22,146.16,0.25098]
[1723564450405,26.8393,146.22,146.16,0.25098]
[1723564450612,6.8396,146.21,146.16,0.25098]
[1723564451323,1.66063536,146.2,146.16,0.25098]
[1723564451495,6.8399,146.2,146.15,45.0]
[1723564451820,6.8394,146.21,146.15,45.0]
[1723564452226,6.8394,146.21,146.16,0.25098]
[1723564453121,20.0,146.22,146.15,45.0]
[1723564453307,6.8404,146.19,146.15,45.0]
[1723564453496,6.84,146.2,146.15,45.0]
[1723564453814,6.8396,146.21,146.15,45.0]
[1723564454824,20.0,146.22,146.15,45.0]
[1723564455120,7.12937312,146.2,146.16,0.25098]
[1723564455301,6.8377,146.25,146.17,16.4813]
[1723564455504,6.8377,146.25,146.18,0.25098]
[1723564455726,6.8381,146.24,146.18,45.25098]
[1723564456106,6.8385,146.23,146.18,45.25098]
[1723564456314,6.8385,146.23,146.18,45.0]
[1723564456608,7.12757701,146.26,146.18,45.0]
[1723564456609,6.8392,146.22,146.18,45.0]
[1723564457002,39.36,146.25,146.18,45.0]
[1723564457201,6.8386,146.23,146.18,45.0]
[1723564457429,8.49923536,146.23,146.18,45.0]
[1723564457621,6.8386,146.23,146.18,45.0]
[1723564458097,26.8382,146.24,146.18,45.0]
[1723564458497,26.8382,146.24,146.19,0.12549]
[1723564458920,6.8385,146.23,146.18,45.0]
[1723564459120,6.8394,146.21,146.18,45.0]
[1723564459330,39.36,146.23,146.18,45.0]
[1723564459514,6.8396,146.21,146.18,45.0]
[1723564460004,6.8396,146.21,146.17,16.4813]
[1723564460208,8.50023536,146.21,146.17,16.4813]
[1723564460721,1.66063536,146.2,146.17,16.4813]
[1723564460930,8.50053536,146.2,146.17,16.4813]
[1723564461224,31.5,146.22,146.17,16.4813]
[1723564461419,38.3392,146.22,146.18,45.0]
[1723564461725,6.8387,146.23,146.18,45.0]
[1723564462317,26.8381,146.24,146.18,45.0]
[1723564462618,20.0,146.24,146.18,45.0]
[1723564464217,26.838,146.24,146.18,45.0]
[1723564464733,26.838,146.24,146.19,0.12549]
[1723564465410,6.8388,146.23,146.18,45.0]
[1723564465614,20.0,146.24,146.18,45.0]
[1723564465816,17.093,146.26,146.18,45.0]
[1723564465817,6.8386,146.23,146.18,45.0]
[1723564466806,6.8382,146.24,146.18,45.0]
[1723564467202,6.8382,146.24,146.19,0.12549]
[1723564467629,33.96329532,146.25,146.2,6.6262]
[1723564467839,7.12569532,146.25,146.21,45.0]
[1723564468337,13.96329532,146.25,146.21,45.0]
[1723564469001,7.12569532,146.25,146.22,15.1456]
[1723564469202,14.16742705,146.3,146.23,45.0]
[1723564469433,6.8364,146.28,146.23,45.0]
[1723564469618,26.8367,146.27,146.23,45.0]
[1723564469807,6.8372,146.26,146.23,45.0]
[1723564470226,26.8368,146.27,146.23,45.0]
[1723564470433,6.8372,146.26,146.23,45.0]
[1723564471126,6.8377,146.25,146.23,45.0]
[1723564472338,39.37,146.25,146.2,6.6262]
[1723564472513,46.2076,146.25,146.2,6.6262]
[1723564473214,6.8381,146.24,146.2,6.6262]
[1723564473424,39.37,146.25,146.2,6.6262]
[1723564473745,6.8399,146.2,146.18,16.5631]
[1723564474033,6.8403,146.2,146.16,6.5238]
[1723564474205,6.8396,146.21,146.16,6.5238]
[1723564474734,1.66063536,146.2,146.16,6.5238]
[1723564475421,6.8392,146.22,146.16,6.5238]
[1723564475622,46.2088,146.23,146.17,45.25098]
[1723564475941,26.839,146.22,146.17,45.0]
[1723564476438,20.0,146.22,146.17,45.0]
[1723564476750,6.8403,146.2,146.17,45.0]
[1723564478129,6.8396,146.21,146.17,45.0]
[1723564484338,58.3391,146.22,146.17,45.0]
[1723564484741,6.8394,146.21,146.17,45.0]
[1723564484940,58.3391,146.22,146.17,45.0]
[1723564485964,6.8394,146.21,146.17,45.0]
[1723564486341,51.5,146.22,146.17,45.0]
[1723564486533,20.0,146.22,146.17,45.0]
[1723564486733,8.50003536,146.21,146.17,45.0]
[1723564487255,6.8394,146.21,146.17,45.0]
[1723564488360,20.0,146.22,146.17,45.0]
[1723564488550,7.10583607,146.23,146.17,45.0]
[1723564488758,38.3382,146.24,146.18,0.25098]
[1723564488943,26.8385,146.23,146.18,0.25098]
[1723564489147,38.3382,146.24,146.18,0.25098]
[1723564489368,31.5,146.24,146.18,0.25098]
[1723564489667,6.8391,146.22,146.18,0.25098]
[1723564489837,6.8386,146.23,146.18,0.25098]
[1723564490049,8.49923536,146.23,146.18,0.25098]
[1723564490573,6.8386,146.23,146.18,0.25098]
[1723564491151,38.3382,146.24,146.18,0.25098]
[1723564491572,6.8385,146.23,146.18,0.25098]
[1723564493579,6.8404,146.19,146.16,6.5238]
[1723564493982,6.8399,146.2,146.16,6.5238]
[1723564494762,6.8396,146.21,146.16,6.5238]
[1723564494967,6.8399,146.2,146.16,6.5238]
[1723564495769,31.5,146.22,146.16,6.5238]
[1723564495770,6.8405,146.19,146.16,6.5238]
[1723564495978,8.50113536,146.19,146.14,16.4527]
[1723564496168,6.8409,146.18,146.14,16.4527]
[1723564496359,8.50123536,146.19,146.14,16.4527]
[1723564497258,8.50123536,146.19,146.15,45.0]
[1723564497468,6.8406,146.19,146.15,45.0]
[1723564497671,38.34,146.2,146.15,45.0]
[1723564497863,6.8406,146.19,146.14,16.4527]
[1723564498069,6.84,146.2,146.14,16.4527]
[1723564498287,15.169,146.24,146.14,16.4527]
[1723564498288,46.669,146.24,146.14,16.4527]
[1723564498488,6.8394,146.22,146.14,16.4527]
[1723564498657,21.66063536,146.21,146.14,16.4527]
[1723564498857,20.0,146.21,146.14,16.4527]
[1723564499390,26.8395,146.21,146.15,45.25098]
[1723564499569,20.0,146.21,146.15,45.25098]
[1723564499882,6.8403,146.2,146.15,45.25098]
[1723564500089,20.0,146.21,146.15,45.0]
[1723564500287,6.8414,146.17,146.15,45.0]
[1723564500492,6.8419,146.16,146.14,16.4527]
[1723564500789,6.8422,146.15,146.12,6.5738]
[1723564501085,1.66063536,146.14,146.12,6.5738]
[1723564501662,1.66063536,146.14,146.1,16.66]
[1723564502856,8.50343536,146.14,146.1,16.66]
[1723564503085,8.50303536,146.15,146.1,16.66]
[1723564503289,6.8424,146.15,146.1,16.66]
[1723564503494,1.66063536,146.14,146.1,16.66]
[1723564504194,1.66063536,146.14,146.11,45.0]
[1723564504691,31.5,146.16,146.11,45.0]
[1723564504897,6.8433,146.13,146.1,16.66]
[1723564505069,1.66063536,146.12,146.1,16.66]
[1723564505271,1.66063536,146.12,146.08,6.5197]
[1723564506365,1.66063536,146.12,146.09,45.0]
[1723564506668,8.50433536,146.12,146.09,45.0]
[1723564507159,1.66063536,146.12,146.09,45.0]
[1723564507362,6.8433,146.13,146.09,45.0]
[1723564509889,38.3429,146.14,146.09,45.0]
[1723564510077,38.59433574,146.14,146.09,45.0]
[1723564511073,40.2549711,146.14,146.08,45.0]
[1723564511270,38.59433574,146.14,146.08,45.0]
[1723564511490,6.8433,146.13,146.08,45.0]
[1723564511792,1.66063536,146.12,146.08,45.0]
[1723564511997,6.8433,146.13,146.08,45.0]
[1723564512296,45.43713574,146.14,146.08,45.0]
[1723564513588,1.66063536,146.13,146.08,45.0]
[1723564514592,26.8423,146.15,146.08,45.0]
[1723564514906,6.8428,146.14,146.08,45.0]
[1723564515710,26.8424,146.15,146.08,45.0]
[1723564515913,7.08748637,146.17,146.09,0.12549]
[1723564516209,7.08748637,146.17,146.09,0.25098]
[1723564516976,7.08748637,146.17,146.1,6.6036]
[1723564517177,33.5164,146.21,146.1,6.6036]
[1723564517178,6.8404,146.19,146.11,45.25098]
[1723564517374,20.0,146.18,146.11,45.25098]
[1723564517800,7.08885867,146.2,146.12,16.2976]
[1723564518014,6.8402,146.2,146.13,45.25098]
[1723564518215,38.58799142,146.22,146.13,45.25098]
[1723564518506,6.8408,146.18,146.13,45.12549]
[1723564518705,6.8404,146.19,146.13,45.0]
[1723564519181,31.5,146.2,146.14,0.12549]
[1723564519508,45.42709142,146.22,146.14,0.25098]
[1723564519824,20.0,146.21,146.14,0.25098]
[1723564520102,20.0,146.21,146.1,38.1036]
[1723564520103,6.8423,146.15,146.1,6.6036]
[1723564520319,6.8421,146.16,146.1,6.6036]
[1723564520500,31.5,146.18,146.1,6.6036]
[1723564520704,1.66063536,146.15,146.09,16.1614]
[1723564521012,20.0,146.15,146.09,16.1614]
[1723564521584,20.0,146.17,146.09,16.1614]
[1723564521908,6.8421,146.16,146.09,16.1614]
[1723564522075,6.8427,146.14,146.09,16.1614]
[1723564522282,6.8419,146.16,146.1,45.12549]
[1723564522578,20.0,146.15,146.11,0.12549]
[1723564522877,26.8414,146.17,146.11,0.12549]
[1723564523078,20.0,146.17,146.11,0.12549]
[1723564523278,6.8407,146.19,146.11,0.12549]
[1723564523584,6.8401,146.2,146.12,6.4024]
[1723564523784,6.8401,146.2,146.13,45.25098]
[1723564524286,38.58799142,146.22,146.13,45.25098]
[1723564524477,6.8405,146.19,146.13,45.25098]
[1723564526486,6.8409,146.18,146.13,45.25098]
[1723564526815,31.5,146.2,146.13,45.25098]
[1723564526816,6.8405,146.19,146.13,45.25098]
[1723564527719,38.58799142,146.22,146.14,16.1055]
[1723564527917,20.0,146.21,146.15,45.25098]
[1723564528421,7.09005902,146.24,146.15,45.25098]
[1723564528590,7.09005902,146.24,146.16,6.5183]
[1723564528591,6.838,146.24,146.16,6.5183]
[1723564528788,31.5,146.25,146.17,45.25098]
[1723564529224,31.5,146.25,146.17,45.0]
[1723564529610,31.5,146.23,146.17,45.0]
[1723564530322,6.839,146.22,146.17,45.0]
[1723564530522,6.8395,146.21,146.17,45.0]
[1723564530713,6.8391,146.22,146.17,45.0]
[1723564531013,31.5,146.23,146.17,45.0]
[1723564531219,31.5,146.25,146.17,45.0]
[1723564531532,26.8381,146.24,146.18,0.25098]
[1723564532131,6.8386,146.23,146.18,0.25098]
[1723564532429,26.8382,146.24,146.18,0.25098]
[1723564532722,20.0,146.24,146.18,0.25098]
[1723564532919,26.8381,146.24,146.18,0.25098]
[1723564533425,20.0,146.24,146.18,0.25098]
[1723564534232,26.8381,146.24,146.18,0.25098]
[1723564534428,20.0,146.24,146.18,0.25098]
[1723564534632,6.8388,146.23,146.18,0.25098]
[1723564534930,6.8396,146.21,146.18,0.12549]
[1723564535111,6.8396,146.21,146.17,45.0]
[1723564535914,6.8401,146.2,146.17,45.0]
[1723564536115,31.5,146.23,146.17,45.0]
[1723564537394,33.16063536,146.23,146.17,45.0]
[1723564538003,6.8395,146.21,146.17,45.0]
[1723564538517,6.8391,146.22,146.17,45.0]
[1723564539123,38.3387,146.23,146.17,45.0]
[1723564540117,38.3387,146.23,146.18,0.25098]
[1723564540118,6.8387,146.23,146.18,0.25098]
[1723564541399,26.8382,146.24,146.18,0.12549]
[1723564541929,26.8382,146.24,146.18,0.25098]
[1723564543008,20.0,146.24,146.18,0.25098]
[1723564543309,20.0,146.24,146.18,1.61877414]
[1723564543622,20.0,146.24,146.18,0.25098]
[1723564543813,7.08911132,146.26,146.18,0.25098]
[1723564543814,7.08911132,146.26,146.19,15.833]
[1723564543998,6.837,146.27,146.21,6.1028]
[1723564544202,47.56176757,146.29,146.22,0.25098]
[1723564544203,6.8371,146.26,146.22,0.25098]
[1723564544403,6.8365,146.28,146.22,45.25098]
[1723564544818,6.8367,146.27,146.22,45.25098]
[1723564545330,47.56176757,146.29,146.22,45.25098]
[1723564545632,16.06176757,146.29,146.23,15.833]
[1723564545814,16.06176757,146.29,146.24,45.25098]
[1723564546018,22.89746757,146.29,146.24,45.25098]
[1723564546219,16.06176757,146.29,146.24,45.25098]
[1723564546910,22.89746757,146.29,146.24,45.25098]
[1723564548107,16.06176757,146.29,146.24,45.25098]
[1723564549916,22.89746757,146.29,146.24,45.25098]
[1723564550317,16.06176757,146.29,146.24,45.25098]
[1723564552708,22.89766757,146.29,146.24,45.25098]
[1723564553519,6.8362,146.28,146.24,45.25098]
[1723564553930,47.56176757,146.29,146.23,15.833]
[1723564554131,31.5,146.27,146.23,15.833]
[1723564554710,6.8377,146.25,146.23,15.833]
[1723564555835,6.8377,146.25,146.24,45.0]
[1723564556409,6.8373,146.26,146.24,45.0]
[1723564556611,38.3366,146.27,146.24,45.0]
[1723564557213,6.8371,146.26,146.24,45.0]
[1723564559051,31.5,146.25,146.21,6.1028]
[1723564559344,23.15596246,146.29,146.19,15.6985]
[1723564559345,38.337,146.27,146.19,15.6985]
[1723564559555,31.5,146.27,146.19,15.6985]
[1723564560253,31.5,146.27,146.2,45.0]
[1723564560549,38.3367,146.27,146.21,0.12549]
[1723564560741,6.8371,146.26,146.21,0.12549]
[1723564561142,31.5,146.27,146.21,0.12549]
[1723564561143,38.3368,146.27,146.21,0.12549]
[1723564561320,6.8368,146.27,146.21,0.12549]
[1723564561516,54.65596246,146.29,146.21,0.12549]
[1723564561717,16.06176757,146.29,146.22,6.2383]
[1723564561937,6.835,146.31,146.23,15.30108]
[1723564562119,6.8354,146.3,146.24,45.0]
[1723564562322,6.8348,146.31,146.25,0.25098]
[1723564562529,6.8344,146.32,146.25,0.25098]
[1723564563018,6.8348,146.31,146.25,0.25098]
[1723564563223,6.8353,146.3,146.25,0.25098]
[1723564564228,6.8349,146.31,146.25,0.25098]
[1723564564425,6.8344,146.32,146.25,0.25098]
[1723564564954,6.8348,146.31,146.25,0.25098]
[1723564565159,6.8354,146.3,146.25,0.25098]
[1723564565744,6.8353,146.3,146.25,0.25098]
[1723564565957,6.8349,146.31,146.25,0.25098]
[1723564566365,6.8353,146.3,146.25,0.25098]
[1723564568342,6.8349,146.31,146.25,0.25098]
[1723564569456,6.8352,146.3,146.25,0.25098]
[1723564569643,6.8349,146.31,146.25,0.25098]
[1723564570268,6.8336,146.34,146.26,6.09]
[1723564570474,20.0,146.33,146.27,60.95988]
[1723564571143,20.0,146.34,146.27,60.95988]
[1723564571882,37.0822,146.36,146.27,60.95988]
[1723564572171,6.8348,146.31,146.27,60.95988]
[1723564572372,6.8353,146.3,146.27,60.83439]
[1723564573080,6.8348,146.31,146.27,60.83439]
[1723564574043,17.0891,146.3,146.27,15.7089]
[1723564574250,6.8353,146.3,146.27,15.7089]
[1723564574575,31.5,146.33,146.27,15.7089]
[1723564574877,20.0,146.32,146.27,15.7089]
[1723564575176,6.8351,146.31,146.27,15.7089]
[1723564575339,26.8345,146.32,146.27,15.7089]
[1723564575543,26.8344,146.32,146.28,45.0]
[1723564576464,6.8349,146.31,146.28,45.0]
[1723564576670,26.8345,146.32,146.28,45.0]
[1723564577947,6.8348,146.31,146.28,45.0]
[1723564579067,20.0,146.32,146.28,45.0]
[1723564579270,6.8356,146.3,146.28,45.0]
[1723564580549,20.0,146.32,146.28,45.0]
[1723564580746,6.8343,146.32,146.28,45.0]
[1723564580977,51.5,146.34,146.28,45.0]
[1723564581277,51.5,146.34,146.29,0.25098]
[1723564581647,58.3337,146.34,146.29,0.25098]
[1723564582272,26.8337,146.34,146.29,0.25098]
[1723564582855,6.8339,146.33,146.29,0.25098]
[1723564583070,8.49453536,146.33,146.29,0.25098]
[1723564583364,6.8343,146.32,146.29,0.25098]
[1723564584156,8.49463536,146.33,146.29,0.25098]
[1723564584372,58.3334,146.34,146.29,0.25098]
[1723564584571,8.49443536,146.33,146.29,0.25098]
[1723564584880,58.3334,146.34,146.29,0.25098]
[1723564585246,20.0,146.34,146.29,0.25098]
[1723564585447,7.09962203,146.37,146.29,0.25098]
[1723564585784,35.24021087,146.4,146.3,22.5459]
[1723564585785,49.66311087,146.4,146.3,22.5459]
[1723564585963,6.8315,146.38,146.31,45.25098]
[1723564586160,6.8312,146.39,146.31,45.25098]
[1723564586391,6.8316,146.38,146.31,45.25098]
[1723564588150,6.8316,146.38,146.32,1.2745347]
[1723564588352,7.09782036,146.41,146.34,15.6065]
[1723564588666,6.8302,146.41,146.36,6.5006]
[1723564588980,6.8302,146.41,146.37,45.0]
[1723564589767,6.8298,146.42,146.37,45.0]
[1723564589972,20.0,146.41,146.37,45.0]
[1723564590170,6.8298,146.42,146.37,45.0]
[1723564590566,6.8298,146.42,146.38,0.25098]
[1723564591085,6.8301,146.41,146.38,0.25098]
[1723564591457,6.8301,146.41,146.37,45.0]
[1723564591657,31.5,146.42,146.36,6.5006]
[1723564591858,6.8315,146.38,146.36,6.5006]
[1723564592487,6.8318,146.38,146.34,15.6065]
[1723564592659,6.8321,146.37,146.34,15.6065]
[1723564593463,6.8317,146.38,146.34,15.6065]
[1723564594366,6.832,146.37,146.35,45.0]
[1723564594567,6.832,146.37,146.34,15.6065]
[1723564595759,6.832,146.37,146.35,45.0]
[1723564595960,6.8312,146.39,146.35,45.0]
[1723564597508,38.3309,146.4,146.35,45.0]
[1723564597789,6.8309,146.4,146.35,45.0]
[1723564600764,6.8296,146.42,146.36,0.12549]
[1723564600959,38.59622935,146.44,146.36,0.12549]
[1723564600960,38.59622935,146.44,146.36,0.25098]
[1723564601159,21.66063536,146.43,146.36,0.25098]
[1723564601398,6.8306,146.4,146.36,0.25098]
[1723564602579,6.8301,146.41,146.36,0.25098]
[1723564604397,1.66063536,146.4,146.36,0.25098]
[1723564604896,8.49123536,146.4,146.36,0.25098]
[1723564605393,6.831,146.39,146.35,45.0]
[1723564605692,6.832,146.37,146.34,15.6065]
[1723564605992,31.5,146.38,146.34,15.6065]
[1723564606386,6.8322,146.37,146.34,15.6065]
[1723564607788,6.8322,146.37,146.35,45.0]
[1723564609597,38.3317,146.38,146.35,45.0]
[1723564609894,6.831,146.39,146.35,45.0]
[1723564612880,45.43592759,146.4,146.35,45.0]
[1723564613085,39.86976094,146.43,146.36,0.12549]
[1723564613086,20.0,146.39,146.36,0.12549]
[1723564613385,31.5,146.42,146.36,0.12549]
[1723564613386,26.8306,146.4,146.36,0.25098]
[1723564613892,1.66063536,146.39,146.35,45.0]
[1723564614075,26.8307,146.4,146.35,45.0]
[1723564614577,6.8311,146.39,146.35,45.0]
[1723564615580,1.66063536,146.39,146.35,45.0]
[1723564616812,6.832,146.37,146.35,45.0]
[1723564617199,6.8317,146.38,146.35,45.0]
[1723564618103,6.8324,146.36,146.35,45.0]
[1723564619215,6.8346,146.32,146.28,22.3859]
[1723564619388,1.66063536,146.31,146.28,22.3859]
[1723564620205,6.8346,146.32,146.28,22.3859]
[1723564620981,8.49523536,146.32,146.28,22.3859]
[1723564621190,6.8346,146.32,146.28,22.3859]
[1723564622084,6.8346,146.32,146.29,45.0]
[1723564622284,38.334,146.33,146.29,45.0]
[1723564622596,6.8343,146.32,146.29,45.0]
[1723564623093,6.8358,146.29,146.25,15.48]
[1723564623290,31.5,146.29,146.25,15.48]
[1723564623613,31.5,146.33,146.25,15.48]
[1723564623779,20.0,146.32,146.25,15.48]
[1723564624393,20.0,146.32,146.26,45.0]
[1723564624592,26.8344,146.32,146.27,0.25098]
[1723564624796,20.0,146.32,146.27,0.25098]
[1723564625303,34.1568,146.39,146.27,0.25098]
[1723564625304,38.3325,146.36,146.27,0.25098]
[1723564625504,26.8333,146.35,146.27,0.25098]
[1723564625709,6.8341,146.33,146.27,0.25098]
[1723564625915,8.49523536,146.32,146.27,0.25098]
[1723564626116,20.0,146.35,146.26,45.0]
[1723564626117,19.4152,146.3,146.26,45.0]
[1723564627016,6.8352,146.3,146.26,45.0]
[1723564627220,6.8348,146.31,146.26,45.0]
[1723564627516,12.58,146.32,146.26,45.0]
[1723564627717,12.58,146.32,146.27,0.25098]
[1723564627919,19.4144,146.32,146.27,0.25098]
[1723564629897,6.8349,146.31,146.27,0.25098]
[1723564632700,6.8349,146.31,146.26,45.0]
[1723564634599,19.4146,146.32,146.27,0.25098]
[1723564635128,6.8348,146.31,146.26,45.0]
[1723564635725,6.8352,146.3,146.26,45.0]
[1723564635913,6.8348,146.31,146.26,45.0]
[1723564636320,6.8356,146.3,146.26,45.0]
[1723564636524,8.49663536,146.29,146.26,45.0]
[1723564636723,19.4154,146.3,146.25,15.48]
[1723564637912,12.58,146.3,146.25,15.48]
[1723564638221,12.58,146.32,146.26,45.25098]
[1723564638826,12.58,146.32,146.27,0.90781562]
[1723564639635,12.58,146.32,146.26,45.25098]
[1723564641138,12.58,146.34,146.27,0.9073191]
[1723564641343,12.58,146.34,146.28,0.25098]
[1723564641534,12.58,146.32,146.28,0.12549]
[1723564641932,21.07493536,146.32,146.27,0.12549]
[1723564642240,6.8335,146.34,146.27,0.12549]
[1723564642540,12.58,146.33,146.27,0.12549]
[1723564644744,19.4131,146.35,146.27,0.12549]
[1723564645244,19.4122,146.37,146.29,16.1829]
[1723564645429,19.4122,146.37,146.3,45.25098]
[1723564645737,6.8317,146.38,146.3,45.25098]
[1723564645945,7.08911441,146.39,146.3,45.25098]
[1723564645946,12.58,146.37,146.3,45.25098]
[1723564646128,19.412,146.37,146.3,45.25098]
[1723564647841,19.412,146.37,146.31,6.4083]
[1723564648142,19.411,146.39,146.32,45.25098]
[1723564648327,19.411,146.39,146.33,16.293]
[1723564648533,19.411,146.39,146.34,45.25098]
[1723564652060,6.8319,146.38,146.34,45.12549]
[1723564652242,6.8325,146.36,146.33,16.293]
[1723564653149,12.58,146.37,146.33,16.293]
[1723564653530,19.4123,146.37,146.33,16.293]
[1723564653852,12.58,146.37,146.34,45.0]
[1723564654047,19.4129,146.35,146.34,45.0]
[1723564654646,12.58,146.35,146.34,45.0]
[1723564654947,19.4129,146.35,146.31,6.4083]
[1723564655145,6.8334,146.34,146.31,6.4083]
[1723564655352,12.58,146.35,146.31,6.4083]
[1723564656453,12.58,146.35,146.32,45.0]
[1723564659148,12.58,146.37,146.33,0.12549]
[1723564659349,12.58,146.37,146.33,0.25098]
[1723564659532,12.58,146.37,146.32,45.0]
[1723564659935,12.58,146.37,146.33,0.25098]
[1723564660136,12.58,146.37,146.32,45.0]
[1723564662331,12.58,146.39,146.33,1.61754314]
[1723564662651,12.58,146.39,146.34,16.2644]
[1723564662847,12.58,146.39,146.35,45.0]
[1723564663554,6.8306,146.4,146.35,45.0]
[1723564663759,6.8306,146.4,146.35,46.36537811]
[1723564664063,19.4096,146.42,146.35,45.0]
[1723564664249,19.4096,146.42,146.36,1.6151455]
[1723564664561,19.4096,146.42,146.36,0.25098]
[1723564664857,6.8301,146.41,146.36,0.25098]
[1723564665056,6.8309,146.4,146.36,0.25098]
[1723564665630,6.8302,146.41,146.36,0.25098]
[1723564670539,12.58,146.38,146.35,45.0]
[1723564670864,19.4115,146.38,146.35,45.0]
[1723564671440,1.66063536,146.37,146.35,45.0]
[1723564671645,19.4115,146.38,146.35,45.0]
[1723564672569,12.58,146.36,146.34,16.2644]
[1723564672772,19.4125,146.36,146.31,6.4083]
[1723564673148,12.58,146.36,146.31,6.4083]
[1723564673368,19.4125,146.36,146.31,6.4083]
[1723564673576,12.58,146.36,146.31,6.4083]
[1723564674775,12.58,146.36,146.32,45.0]
[1723564676274,1.66063536,146.35,146.32,45.0]
[1723564676489,12.58,146.34,146.32,45.0]
[1723564677045,14.24063536,146.34,146.31,45.0]
[1723564677764,12.58,146.34,146.31,45.0]
[1723564678566,12.58,146.36,146.31,45.0]
[1723564682359,19.4125,146.36,146.31,45.0]
[1723564682584,12.58,146.36,146.3,16.3493]
[1723564682892,19.4137,146.34,146.3,16.3493]
[1723564683086,8.49453536,146.33,146.28,6.4697]
[1723564684104,12.58,146.3,146.26,15.4838]
[1723564684597,1.66063536,146.29,146.26,15.4838]
[1723564685167,1.66063536,146.29,146.24,6.1431]
[1723564685369,19.4155,146.3,146.24,6.1431]
[1723564685583,12.58,146.3,146.24,6.1431]
[1723564686573,12.58,146.3,146.25,45.0]
[1723564687602,12.58,146.32,146.25,45.0]
[1723564687785,12.58,146.32,146.26,0.25098]
[1723564690080,19.4143,146.32,146.26,0.25098]
[1723564690773,19.4135,146.34,146.26,0.25098]
[1723564690976,6.8338,146.33,146.26,0.25098]
[1723564691272,30.04538099,146.36,146.26,0.25098]
[1723564691469,19.4144,146.32,146.26,0.25098]
[1723564691900,19.4155,146.3,146.24,6.1431]
[1723564692073,12.58,146.3,146.24,6.1431]
[1723564692281,17.0853,146.33,146.24,6.1431]